Cogmind - Beta 13 @@@ ROGUE MODE // 2024.07.12 @ 18:03:43 Player: APerTAS Result: Destroyed by Y-45 Defender with Heavy Assault Rifle Performance ------------- Evolutions (0) 0 Regions Visited (4) 800 Robots Destroyed (20) 100 Value Destroyed (350) 350 Prototype IDs (23) 460 Alien Tech Used (0) 0 Bonus (300) 300 TOTAL SCORE: 2010 Bonus ------- Aligned with FarCom 300 Cogmind --------- Core Integrity 0/250 Matter 223/300 Energy 249/250 System Corruption 0% Temperature Cool (9) Movement Core (550) Ox10 Location -9/Mines Parts ------- > --- POWER (1) -------- Ion Engine > --- PROPULSION (2) --- (None) > --- UTILITY (2) ------ Large Storage Unit Improved Terrain Scanner > --- WEAPON (2) ------- Assault Rifle Ripper > --- INVENTORY (15) --- Light Ion Engine Wheel Flying Fortress v7 Improved Heat Sink Small Storage Unit Medium Laser Assault Rifle Grenade Launcher Datajack Mining Laser Welding Torch Peak State ------------ > --- POWER ------------ Ion Engine > --- PROPULSION ------- Compact Wheel Compact Wheel > --- UTILITY ---------- Large Storage Unit Improved Terrain Scanner > --- WEAPON ----------- Grenade Launcher Ripper > --- INVENTORY -------- Light Ion Engine Wheel Flying Fortress v7 Small Storage Unit Medium Laser Assault Rifle Assault Rifle Grenade Launcher Datajack Mining Laser Welding Torch [Rating: 16] Favorites ----------- Power Ion Engine Engine Ion Engine Propulsion Light Treads Treads Light Treads Wheel Compact Wheel Utility Large Storage Unit Device Improved Terrain Scanner Storage Large Storage Unit Weapon Ripper Energy Gun Medium Laser Ballistic Gun Assault Rifle Launcher Grenade Launcher Slashing Weapon Ripper Build | -11 -10 -10 -10 -9 ------- Run | Yrd Mat Min Exi Min Slots Evolved . | . . . . . Power . | . . . . . Propulsion . | . . . . . Utility . | . . . . . Weapon . | . . . . . Parts Attached 19 | 4 5 6 . 4 Power 2 | 1 . 1 . . Engine 2 | 1 . 1 . . Core . | . . . . . Reactor . | . . . . . Propulsion 5 | 2 . 2 . 1 Treads 2 | 2 . . . . Leg . | . . . . . Wheel 3 | . . 2 . 1 Hover . | . . . . . Flight . | . . . . . Utility 4 | 1 1 1 . 1 Device 2 | . . 1 . 1 Storage 2 | 1 1 . . . Processor . | . . . . . Hackware . | . . . . . Protection . | . . . . . Artifact . | . . . . . Weapon 8 | . 4 2 . 2 Energy Gun 3 | . 2 1 . . Energy Cannon . | . . . . . Ballistic Gun 1 | . . . . 1 Ballistic Cannon . | . . . . . Launcher 3 | . 2 . . 1 Special Weapon . | . . . . . Impact Weapon . | . . . . . Slashing Weapon 1 | . . 1 . . Piercing Weapon . | . . . . . Special Melee Weapon . | . . . . . Unidentified Prototypes . | . . . . . Parts Lost 3 | . . . . 3 Power . | . . . . . Propulsion 2 | . . . . 2 Utility . | . . . . . Weapon 1 | . . . . 1 Highest Loss Streak 3 | . . . . 3 To Critical Strikes . | . . . . . Average Slot Usage (%) 83 | . 74 85 85 89 Engine 14 | . 14 14 14 14 Treads 15 | . 28 26 . . Wheel 12 | . . 1 28 26 Storage 14 | . 14 14 14 14 Energy Gun 7 | . 1 9 14 1 Launcher 7 | . 16 6 . 10 Slashing Weapon 9 | . . 12 14 14 Naked Turns . | . . . . . Heaviest Build 32 | 10 31 31 30 32 Greatest Support 40 | 40 40 40 32 32 Greatest Overweight (x) . | . . . . . Average Overweight (x) . | . . . . . Largest Inventory Capacity 15 | 8 15 15 15 15 Average Capacity 13 | 6 10 15 15 15 Most Carried 15 | 7 13 15 15 15 Average Carried 12 | 4 7 13 14 14 Final Capacity 15 | 8 15 15 15 15 Final Carried 15 | 6 11 15 15 14 Class Distribution -------------------- 92% | Mutant 7% | Assassin Dominant Class ---------------- Mutant | -10/Materials Mutant | -10/Mines Mutant | -10/Exiles Assassin | -9/Mines Resources | -11 -10 -10 -10 -9 ----------- Run | Yrd Mat Min Exi Min Matter Collected 666 | 240 20 275 . 131 Remotely . | . . . . . Salvage Created 412 | . 53 297 . 62 Parts 27 | . 14 11 . 2 Haulers Intercepted 1 | . 1 . . . Recyclers Shooed . | . . . . . Parts Field Recycled . | . . . . . Retrieved Matter . | . . . . . Parts Self-Destructed . | . . . . . Prevented . | . . . . . Kills | -11 -10 -10 -10 -9 ------- Run | Yrd Mat Min Exi Min Combat Hostiles Destroyed 21 | . 6 7 . 8 Guns 1 | . . . . 1 AOE 20 | . 6 7 . 7 Classes Destroyed 8 | . 3 3 . 2 Worker 2 | . . 2 . . Tunneler 1 | . 1 . . . Hauler 1 | . 1 . . . Recycler 2 | . . 2 . . Swarmer 9 | . 6 3 . . Grunt 4 | . . 4 . . Sentry 1 | . . . . 1 Assembled 7 | . . . . 7 Best Kill Streak 6 | . 3 3 . 6 Combat Bots Only 6 | . 3 3 . 6 Max Kills in Single Turn 3 | . 3 2 . 3 Gunslinging . | . . . . . Exploded 3 | . 3 2 . 3 Melee . | . . . . . Uniques/NPCs Destroyed . | . . . . . Combat | -11 -10 -10 -10 -9 -------- Run | Yrd Mat Min Exi Min Hostile Shots Fired 69 | . 5 19 . 45 Missed 23 | . 1 8 . 14 Damage Taken 747 | . 97 186 . 464 Core 259 | . 18 29 . 212 Absorbed by Shields . | . . . . . Core Remaining (%) 100 | 100 . . . . Volleys Fired 43 | . 6 13 . 24 Largest 2 | . 2 2 . 1 Hottest 100 | . 100 60 . 30 Shots Fired 52 | . 12 16 . 24 Gun 20 | . 2 2 . 16 Cannon . | . . . . . Launcher 32 | . 10 14 . 8 Special . | . . . . . Kinetic 16 | . . . . 16 Thermal 4 | . 2 2 . . Explosive 32 | . 10 14 . 8 Electromagnetic . | . . . . . Robot Hit Streak 6 | . 3 6 . 4 Robot Miss Streak 3 | . 1 1 . 3 Penetration Max . | . . . . . Secondary Targets . | . . . . . Shots Hit Robots 38 | . 6 18 . 14 Core Hits 38 | . 10 14 . 14 Critical Kills . | . . . . . Critical Parts Destroyed . | . . . . . Critical Strikes . | . . . . . Melee Attacks 6 | . . 6 . . Impact . | . . . . . Slashing 6 | . . 6 . . Piercing . | . . . . . Sneak Attacks 6 | . . 6 . . Combat Hostiles . | . . . . . Follow-up Attacks . | . . . . . Damage Inflicted 2005 | . 396 1039 . 570 Guns 153 | . 12 13 . 128 Cannons . | . . . . . Explosions 1439 | . 384 613 . 442 Melee 413 | . . 413 . . Ramming . | . . . . . Kinetic 128 | . . . . 128 Thermal 25 | . 12 13 . . Explosive 1439 | . 384 613 . 442 Electromagnetic . | . . . . . Impact . | . . . . . Slashing 413 | . . 413 . . Piercing . | . . . . . Highest Corruption . | . . . . . Average Corruption . | . . . . . Corruption Purged . | . . . . . Corruption Blocked . | . . . . . Overload Shots . | . . . . . Overflow Damage 274 | . . 256 . 18 Projectiles . | . . . . . Explosions 51 | . . 33 . 18 Melee 223 | . . 223 . . Knockbacks . | . . . . . Impact . | . . . . . Kinetic . | . . . . . Secondary . | . . . . . Self-Inflicted Damage 176 | . 66 70 . 40 Shots 8 | . 3 4 . 1 Rammed . | . . . . . Targets Rammed . | . . . . . Kicked . | . . . . . Crushed . | . . . . . Highest Temperature 39 | . 39 20 . 17 Average Temperature 12 | . 20 10 . 11 Received Heat Transfer 222 | . . 51 . 171 Siege Activations . | . . . . . Robots Corrupted . | . . . . . Combat Hostiles . | . . . . . Parts Fried . | . . . . . Impact Corruptions . | . . . . . Robots Melted . | . . . . . Combat Hostiles . | . . . . . Parts Melted . | . . . . . Heat Transferred 74 | . 37 37 . . Parts Sabotaged . | . . . . . Parts Stolen . | . . . . . Parts Stripped . | . . . . . Power Chain Reactions . | . . . . . Alert | -11 -10 -10 -10 -9 ------- Run | Yrd Mat Min Exi Min Peak Influence 283 | . 215 283 . 48 Initial 5 | . . 5 . . Average 82 | . 38 158 . 20 Maximum Alert Level 1 | . 1 1 . . Low Security (%) 85 | 100 95 69 . 100 Level 1 14 | . 4 30 . . Level 2 . | . . . . . Level 3 . | . . . . . Level 4 . | . . . . . Level 5 . | . . . . . High Security . | . . . . . Max Security . | . . . . . Squads Dispatched . | . . . . . Investigation . | . . . . . Extermination . | . . . . . Reinforcement . | . . . . . Assault . | . . . . . Garrison . | . . . . . Intercept . | . . . . . Searches Triggered . | . . . . . Construction Impeded . | . . . . . Haulers Reinforced . | . . . . . Active Scanning Responses . | . . . . . Cargo Convoy Interrupts . | . . . . . Stealth | -11 -10 -10 -10 -9 --------- Run | Yrd Mat Min Exi Min Distress Signals . | . . . . . Communications Jammed . | . . . . . Distress Signals . | . . . . . Times Spotted 25 | . 7 7 . 11 Peak Tracking Total 6 | . 3 3 . 6 Tactical Retreats . | . . . . . Traps | -11 -10 -10 -10 -9 ------- Run | Yrd Mat Min Exi Min Traps Triggered . | . . . . . Indirectly . | . . . . . Trap Hack Attempts . | . . . . . Triggered . | . . . . . Disarmed . | . . . . . Reprogrammed . | . . . . . Reused . | . . . . . Traps Extracted . | . . . . . Installed . | . . . . . Triggered . | . . . . . Machines | -11 -10 -10 -10 -9 ---------- Run | Yrd Mat Min Exi Min Machines Disabled 3 | . . 3 . . Max in Single Turn 2 | . . 2 . . Machines Repaired . | . . . . . Machines Dismantled . | . . . . . Machines Sabotaged . | . . . . . Overloaded Fab Kills . | . . . . . Hacking | -11 -10 -10 -10 -9 --------- Run | Yrd Mat Min Exi Min Machines Accessed 3 | . 1 1 1 . Terminals 1 | . 1 . . . Fabricators . | . . . . . Repair Stations . | . . . . . Recycling Units . | . . . . . Scanalyzers . | . . . . . Garrison Access . | . . . . . Total Hacks 4 | . 2 1 1 . Successful 3 | . 1 1 1 . Failed 1 | . 1 . . . Catastrophic . | . . . . . Database Lockouts . | . . . . . Manual 1 | . . . 1 . Terminals 2 | . 2 . . . Fabricators . | . . . . . Repair Stations . | . . . . . Recycling Units . | . . . . . Scanalyzers . | . . . . . Garrison Access . | . . . . . Terminal Hacks 3 | . 1 1 1 . Open Door 1 | . . 1 . . Zone Layout 1 | . 1 . . . Derelict Proto ID Bank 1 | . . . 1 . Fabricator Hacks . | . . . . . Repair Station Hacks . | . . . . . Recycling Unit Hacks . | . . . . . Scanalyzer . | . . . . . Garrison Access Hacks . | . . . . . Unauthorized Hacks . | . . . . . Terminals . | . . . . . Fabricators . | . . . . . Repair Stations . | . . . . . Recycling Units . | . . . . . Scanalyzers . | . . . . . Garrison Access . | . . . . . Data Cores Recovered . | . . . . . Used . | . . . . . Hacking Detections 1 | . 1 . . . Full Trace Events . | . . . . . Feedback Events . | . . . . . Feedback Blocked . | . . . . . Robot Schematics Acquired . | . . . . . Robots Built . | . . . . . Authchips . | . . . . . Time . | . . . . . Total Robot Build Rating . | . . . . . Part Schematics Acquired . | . . . . . Parts Built . | . . . . . Authchips . | . . . . . Time . | . . . . . Total Part Build Rating . | . . . . . Parts Repaired . | . . . . . Time . | . . . . . Parts Recycled . | . . . . . Recycled Matter . | . . . . . Retrieved Matter . | . . . . . Retrieved Components . | . . . . . Parts Scanalyzed . | . . . . . Part Schematics Acquired . | . . . . . Parts Damaged . | . . . . . Bothacking | -11 -10 -10 -10 -9 ------------ Run | Yrd Mat Min Exi Min Used RIF Installer . | . . . . . Robots Hacked . | . . . . . Non-combat . | . . . . . Combat . | . . . . . Robot Hacks Applied . | . . . . . Relay Couplers Released . | . . . . . Fabnet Peak Effective % . | . . . . . Robots Rewired . | . . . . . Allies Hacked . | . . . . . Hacks Repelled . | . . . . . Allies | -11 -10 -10 -10 -9 -------- Run | Yrd Mat Min Exi Min Total Allies . | . . . . . Largest Group . | . . . . . Highest-Rated Group . | . . . . . Highest-Rated Ally . | . . . . . Total Orders . | . . . . . Ally Attacks . | . . . . . Total Damage . | . . . . . Kills . | . . . . . Allies Corrupted . | . . . . . Allies Melted . | . . . . . Intel | -11 -10 -10 -10 -9 ------- Run | Yrd Mat Min Exi Min Robot Analysis Total . | . . . . . Derelict Logs Recovered 1 | . . 1 . . Drone Launches . | . . . . . Drone Recoveries . | . . . . . Exploration | -11 -10 -10 -10 -9 ------------- Run | Yrd Mat Min Exi Min Turns Passed 2112 | 98 496 671 515 332 Spaces Moved 1520 | 55 288 390 512 275 Core 5 | 5 . . . . Treads 690 | 50 288 352 . . Legs . | . . . . . Wheels 825 | . . 38 512 275 Hover . | . . . . . Flight . | . . . . . Fastest Speed 50 | 50 160 100 100 100 Average Speed 127 | 150 160 154 100 100 Slowest Speed 160 | 160 160 160 100 100 Overloaded Moves . | . . . . . Propulsion Burnouts . | . . . . . Robots Hopped . | . . . . . Cave-ins Triggered . | . . . . . Exploration Rate (%) 51 | 4 38 74 82 59 Regions Visited 4 Branch Regions 3 Pre-discovered Areas . | . . . . . Known Exits Taken . | . . . . . Unknown Exits Taken 4 | 1 1 1 1 . Scrap Searched 2 | . . 1 . 1 Spaces Dug 4 | . . . . 4 Terrain Destroyed 146 | . 44 74 . 28 Melee . | . . . . . Projectile . | . . . . . AOE 146 | . 44 74 . 28 Terrain Rammed . | . . . . . Walls Destroyed . | . . . . . Machines Disabled . | . . . . . Actions | -11 -10 -10 -10 -9 --------- Run | Yrd Mat Min Exi Min Total 1644 | 72 311 434 516 311 Wait 11 | . . 10 . 1 Move 1516 | 54 287 389 511 275 Hop . | . . . . . Pick Up 34 | 12 10 7 1 4 Fast Attach . | . . . . . Attach 9 | 4 2 1 . 2 Detach . | . . . . . Swap 10 | . 3 5 . 2 Drop 15 | 2 3 3 4 3 Fire 43 | . 6 13 . 24 Melee 6 | . . 6 . . Ram . | . . . . . Kick . | . . . . . Crush . | . . . . . Escape Stasis . | . . . . . Rewire . | . . . . . Trap . | . . . . . Miscellaneous . | . . . . . Route ------- -11/Scrapyard -10/Materials -10/Mines (discovered 2 exits: [*Mat] / *Exi) -10/Exiles -9/Mines (discovered 1 exit: [*Mat]) History --------- Turn | Location | Event 7 | -11/Scrapyard | Discovered new exit (range 15) 99 | -11/Scrapyard | Entered Materials 330 | -10/Materials | Build established: Mutant 482 | -10/Materials | Discovered new exit (range 12) 595 | -10/Materials | Entered Mines 675 | -10/Mines | A weapon hastily lodged in a ceiling crevice suddenly fell to the ground 688 | -10/Mines | Learned 2 Materials zone layouts 925 | -10/Mines | Met a Derelict who couldn't figure out how to use a Trap Extractor 1156 | -10/Mines | Discovered new exit (range 14) 1261 | -10/Mines | Deemed a non-threat by the Exiles lab entrance 1261 | -10/Mines | Discovered new exit (range 5) 1266 | -10/Mines | Entered Exiles 1291 | -10/Exiles | Met 8R-AWN 1308 | -10/Exiles | Met EX-HEX 1336 | -10/Exiles | Met EX-BIN 1348 | -10/Exiles | Aligned with FarCom system 1349 | -10/Exiles | Given EX-Vault access code 1372 | -10/Exiles | Opened EX-Vault 1385 | -10/Exiles | Found Flying Fortress v7 1407 | -10/Exiles | Warned to stay clear of 0b10 Research branches 1472 | -10/Exiles | Met EX-DEC 1538 | -10/Exiles | Visited The Gauntlet 1767 | -10/Exiles | Discovered new exit (range 15) 1781 | -10/Exiles | Left Exiles lab with Flying Fortress v7 1781 | -10/Exiles | Entered Mines 1783 | -9/Mines | YI-UF0 nonchalantly dropped a Grenade Launcher on the ground 1824 | -9/Mines | Assembled infested the area 1887 | -9/Mines | Core integrity fell below 50% 2047 | -9/Mines | Discovered new exit (range 6) 2093 | -9/Mines | Core integrity fell below 20% 2113 | -9/Mines | Destroyed by Y-45 Defender with Heavy Assault Rifle Last Messages --------------- Dropped Lgt. Treads. Acquired Com. Wheel. Acquired 67 matter. K-01 Serf collects debris. Acquired 12 matter. Dropped Com. Wheel. Acquired Wheel. Dropped Imp. Heat Sink. Acquired Imp. Terrain Scanner. Acquired Imp. Heat Sink. EXIT=FOUND as-30505 destroyed. Grenade Launcher destroyed. Critical hit (Burn: +37). Com. Wheel destroyed. T-07 Excavator destroyed. Y-45 Defender destroyed. Critical hit (Burn: +37). Com. Wheel destroyed. Critical hit (Burn: +37). Map ----- +----------------------------------------------------+ | ##????? ??? ??????? | | ##???### ? #???????? | | ########## #????????? | | #??? #????????? | | ##### #### #????????? | | #### ###???# #????????? | | ##??####???### #????????? | | ###?????????## ##?#######? | | #???????##### ##??# #? | | ????????# #???# #? | | ???????# ##?# #? | | ???????# #??# < #? | | ???????## ## ##??# #? | | ????????####?## ##???# #? | | ?#????????????# ##???## #? | | ??????????????## #?????### ###? | | ????????????#??# #????#?# #??? | | ?????????????#### ######## #??? | | #####?????#### ### ### #??? | | #?#????## #######?# ######??? | | ### #?????## ##?????# ##??#???? | | ??# #???### ##?#### #???????? | | ??# #??## ### #???????? | | ###|#### ### #???????? | | # ! ## ##?### #???????? | | ##?#??## @ ##??????? | | ##??????### ##????#? | | ##?????????## ##????? | | ##???????????# #?#??? | | ######????????# #????? | | #????????????## #????? | | ##?##????????# % #?#??# | | ##?????????"|[ !Y = ##????? | | ## ##???#???### !+% ####?????? | | ## #??????????# + ##????#???? | | ?# ######?????#"![ # #????????#? | | ?# # ##??#??#/]## ?????????? | | ?# #?????#### ?????????? | | # #??????? ????????? | | # ##??????? ??? ????? | | ## ##?#?????? ? ?????? | | ?## ##????#?????? #?????????? | | ??## ##????#??????? ###???????????? | | ???####?????????????????????????????? | | ????????????????????????????????????? | | #???????????????????????????????????? | | ????????????????????????????????????? | | ????????????????????????????????????? | | ????????????????????????????????????? | | | +----------------------------------------------------+ Best States ------------- Heat Dissipation 25 Energy Generation 10 Energy Capacity 250 Matter Stores 300 Matter Capacity 300 Sight Range 16 Terrain Scan Range 16 Terrain Scan Density 10 Evasion (%) 40 Recoil Reduction 2 Item Schematics ----------------- None Robot Schematics ------------------ None Fabricated ------------ Nothing Alien Tech Used ----------------- None Achievements -------------- None Challenges ------------ None Game ------ Seed FireSniperKatana Manual? 0 Play Time 00:22:07 Cumulative 7.1 hours Start 2024.07.12 @ 17:42:45 End 2024.07.12 @ 18:03:43 Sessions 1 Manual Loads 0 Difficulty Rogue Special Mode None Game No. 18 Rogue 18 Adventurer 0 Explorer 0 Win Type - Total 0 Types 0/0/0/0/0/0/0/0/0 Lore% 15 Gallery% 10 Achievement% 12 Wizard Run 0 Options --------- Layout 1 ASCII 0 Keyboard 0 Movement Arrows Keybinds 0 Fullscreen 1 Font 28/Dina Map View 50x43 Zoom Use 0% Tactical HUD 0 Map Filters NONE Filters NONE Steam X RUN: e6fe50ef-ea77-4d0c-a774-9c21a0e0067a